fUSD/lending_fUSD_20260112
["ID","MTS","AMOUNT","RATE_DAILY","PERIOD"]
[401449124,1768230639631,-500.0,0.00017099,2]
[401449126,1768230639640,-500.0,0.00017099,2]
[401449128,1768230639649,-500.0,0.00017099,2]
[401449130,1768230639659,-500.0,0.00017099,2]
[401449132,1768230639668,-500.0,0.00017099,2]
[401449134,1768230639677,-150.0,0.000171,2]
[401449136,1768230639686,-325.0,0.00017101,2]
[401449138,1768230639695,-318.02,0.00017136,2]
[401449140,1768230639704,-150.0,0.000172,2]
[401449142,1768230639713,-150.0,0.00017229,2]
[401449144,1768230639723,-3292.0,0.00017255,2]
[401449146,1768230639732,-1625.0,0.00017311,2]
[401449148,1768230639741,-1625.0,0.00017388,2]
[401449150,1768230639751,-150.0,0.000174,2]
[401449152,1768230639760,-150.0,0.000174,2]
[401449154,1768230639769,-1625.0,0.0001743,2]
[401449156,1768230639779,-150.0,0.00017486,2]
[401449158,1768230639788,-158.95584316,0.00017486,2]
[401449160,1768230639797,-1625.0,0.00017534,2]
[401449162,1768230639806,-1625.0,0.00017573,2]
[401449164,1768230639815,-500.0,0.00017588,2]
[401449166,1768230639824,-150.0,0.00017588,2]
[401449168,1768230639834,-150.0,0.00017588,2]
[401449170,1768230639843,-150.0,0.00017588,2]
[401449172,1768230639853,-150.0,0.00017588,2]
[401449174,1768230639862,-500.0,0.00017588,2]
[401449176,1768230639871,-150.0,0.00017588,2]
[401449177,1768230639880,-150.0,0.000176,2]
[401449179,1768230639890,-2500.0,0.00017603,2]
[401449181,1768230639899,-500.0,0.0001761,2]
[401449183,1768230639908,-150.0,0.0001761,2]
[401449185,1768230639916,-500.0,0.0001761,2]
[401449187,1768230639925,-463.0,0.0001761,2]
[401449189,1768230639935,-269.06323949,0.0001761,2]
[401449191,1768230639943,-166.66,0.00017611,2]
[401449193,1768230639954,-213.20330559,0.00017621,2]
[401449195,1768230639963,-1000.0,0.00017621,2]
[401449197,1768230639972,-1001.478272,0.00017621,2]
[401449199,1768230639981,-343.5420118,0.00017621,2]
[401449201,1768230639990,-1000.0,0.00017621,2]
[401449203,1768230639999,-1625.0,0.00017637,2]
[401449206,1768230640010,-1804.42933112,0.0001764,2]
[401449207,1768230640019,-500.0,0.00017643,2]
[401449209,1768230640029,-215.29164788,0.00017643,2]
[401449211,1768230640038,-150.0,0.00017643,2]
[401449214,1768230640049,-150.0,0.00017643,2]
[401449215,1768230640059,-500.0,0.00017643,2]
[401449217,1768230640068,-150.0,0.00017643,2]
[401449244,1768230640373,-1625.0,0.00017646,2]
[401449246,1768230640397,-553.64373807,0.00017647,2]
[401449249,1768230640407,-500.0,0.00017665,2]
[401449251,1768230640418,-150.0,0.00017665,2]
[401449253,1768230640428,-500.0,0.00017665,2]
[401449255,1768230640438,-463.0,0.00017665,2]
[401449259,1768230640449,-1625.0,0.00017682,2]
[401449262,1768230640458,-19999.1346,0.0001769,2]
[401449265,1768230640467,-500.0,0.00017698,2]
[401449268,1768230640478,-150.0,0.00017698,2]
[401449271,1768230640487,-150.81457361,0.00017698,2]
[401449274,1768230640498,-500.0,0.00017698,2]
[401449277,1768230640508,-150.0,0.00017698,2]
[401449280,1768230640517,-150.0,0.000177,2]
[401449283,1768230640527,-202.02373581,0.000177,2]
[401449286,1768230640536,-2811.66687312,0.000177,2]
[401449289,1768230640549,-1198.0,0.000177,2]
[401449291,1768230640558,-497.01791244,0.000177,2]
[401449293,1768230640568,-1625.0,0.00017703,2]
[401449296,1768230640577,-500.0,0.0001772,2]
[401449299,1768230640586,-150.0,0.0001772,2]
[401449302,1768230640596,-500.0,0.0001772,2]
[401449305,1768230640605,-463.0,0.0001772,2]
[401449308,1768230640614,-2811.66687308,0.00017722,2]
[401449311,1768230640624,-1638.624,0.00017727,2]
[401449314,1768230640633,-174.58,0.00017727,2]
[401449317,1768230640643,-150.0,0.00017743,2]
[401449319,1768230640653,-2811.66687308,0.00017744,2]
[401449322,1768230640663,-497.01791242,0.0001775,2]
[401449323,1768230640673,-1589.0,0.00017752,2]
[401449325,1768230640684,-500.0,0.00017752,2]
[401449327,1768230640694,-150.0,0.00017752,2]
[401449329,1768230640706,-500.0,0.00017752,2]
[401449331,1768230640717,-150.0,0.00017752,2]
[401449333,1768230640726,-1625.0,0.0001776,2]
[401449335,1768230640735,-2811.66687308,0.00017767,2]
[401449338,1768230640744,-500.0,0.00017774,2]
[401449339,1768230640754,-150.0,0.00017774,2]
[401449341,1768230640763,-500.0,0.00017774,2]
[401449343,1768230640772,-463.0,0.00017774,2]
[401449346,1768230640782,-841.28772637,0.0001778,2]
[401449348,1768230640792,-391.667066,0.00017787,2]
[401449350,1768230640801,-162.25638013,0.00017789,2]
[401449352,1768230640810,-2811.66687308,0.00017789,2]
[401449354,1768230640820,-500.0,0.0001779,2]
[401449356,1768230640828,-500.0,0.0001779,2]
[401449358,1768230640838,-500.0,0.0001779,2]
[401449359,1768230640848,-500.0,0.0001779,2]
[401449361,1768230640858,-500.0,0.0001779,2]
[401449363,1768230640868,-500.0,0.0001779,2]
[401449365,1768230640877,-500.0,0.0001779,2]
[401449367,1768230640887,-500.0,0.0001779,2]
[401449369,1768230640897,-500.0,0.0001779,2]
[401449370,1768230640907,-150.0,0.0001779,2]
[401449372,1768230640917,-9554.0,0.0001779,2]
[401449373,1768230640926,-1000000.0,0.0001779,2]
[401449374,1768230640936,-2000.0,0.000178,2]
[401449375,1768230640946,-150.0,0.000178,2]
[401449376,1768230640958,-30000.0,0.000178,2]
[401449377,1768230640967,-497.01791242,0.000178,2]
[401449378,1768230640977,-500.0,0.00017807,2]
[401449379,1768230640987,-150.0,0.00017807,2]
[401449380,1768230640997,-500.0,0.00017807,2]
[401449381,1768230641006,-216.59937829,0.00017807,2]
[401449382,1768230641015,-307.05110481,0.00017807,2]
[401449383,1768230641024,-500.0,0.00017808,2]
[401449384,1768230641035,-2811.66687308,0.00017811,2]
[401449385,1768230641046,-391.667066,0.00017817,2]
[401449386,1768230641056,-2206.15882,0.0001782,2]
[401449387,1768230641065,-2206.15882,0.0001782,2]
[401449388,1768230641075,-500.0,0.00017829,2]
[401449389,1768230641085,-150.0,0.00017829,2]
[401449390,1768230641095,-500.0,0.00017829,2]
[401449391,1768230641107,-463.0,0.00017829,2]
[401449392,1768230641118,-2206.15882,0.0001783,2]
[401449393,1768230641128,-2811.66687308,0.00017833,2]
[401449394,1768230641139,-1625.0,0.00017856,2]
[401449395,1768230641148,-200.0,0.00017856,2]
[401449396,1768230641158,-2206.15882,0.0001786,2]
[401449397,1768230641167,-500.0,0.00017862,2]
[401449398,1768230641179,-182.01326872,0.00017862,2]
[401449399,1768230641191,-500.0,0.00017862,2]
[401449400,1768230641202,-524.30171844,0.00017863,2]
[401449401,1768230641211,-2206.15882,0.0001788,2]
[401449402,1768230641221,-500.0,0.00017884,2]
[401449403,1768230641230,-250.0,0.00017884,2]
[401449404,1768230641240,-500.0,0.00017884,2]
[401449405,1768230641249,-463.0,0.00017884,2]
[401449406,1768230641263,-500.0,0.00017899,2]
[401449407,1768230641272,-1000.0,0.000179,2]
[401449408,1768230641282,-5800.0,0.000179,2]
[401449409,1768230641293,-10000.0,0.000179,2]
[401449410,1768230641304,-2384.14424915,0.000179,2]
[401449411,1768230641314,-2384.14424915,0.000179,2]
[401449412,1768230641324,-2384.14424915,0.000179,2]
[401449413,1768230641334,-2384.14424915,0.000179,2]
[401449414,1768230641343,-2384.14424915,0.000179,2]
[401449415,1768230641353,-2384.14424915,0.000179,2]
[401449416,1768230641362,-2384.14424915,0.000179,2]
[401449417,1768230641371,-2384.14424915,0.000179,2]
[401449418,1768230641381,-2206.15882,0.0001791,2]
[401449419,1768230641391,-500.0,0.00017917,2]
[401449420,1768230641400,-646.08693291,0.00017917,2]
[401449421,1768230641410,-1000.0,0.0001793,2]
[401449422,1768230641420,-573.52,0.00017935,2]
[401449423,1768230641430,-1589.0,0.00017938,2]
[401449424,1768230641440,-500.0,0.00017939,2]
[401449425,1768230641450,-500.0,0.00017939,2]
[401449426,1768230641460,-463.0,0.00017939,2]
[401449427,1768230641469,-1589.0,0.00017943,2]
[401449428,1768230641479,-500.0,0.00017972,2]
[401449429,1768230641489,-10623.0,0.00017973,2]
[401449430,1768230641499,-6380.0,0.00017973,2]
[401449431,1768230641508,-500.0,0.00017973,2]
[401449432,1768230641517,-500.0,0.00017973,2]
[401449433,1768230641527,-902.39549897,0.00017973,2]
[401449434,1768230641537,-500.0,0.00017973,2]
[401449435,1768230641546,-150.0,0.00017973,2]
[401449436,1768230641555,-500.0,0.00017973,2]
[401449437,1768230641565,-500.0,0.00017973,2]
[401449438,1768230641575,-515.69548792,0.00017973,2]
[401449439,1768230641584,-500.0,0.00017973,2]
[401449440,1768230641593,-500.0,0.00017973,2]
[401449441,1768230641603,-500.0,0.00017973,2]
[401449442,1768230641612,-500.0,0.00017973,2]
[401449443,1768230641621,-162.85500377,0.00017973,2]
[401449444,1768230641630,-500.0,0.00017973,2]
[401449445,1768230641639,-500.0,0.00017973,2]
[401449446,1768230641649,-273.6592917,0.00017973,2]
[401449447,1768230641659,-500.0,0.00017973,2]
[401449448,1768230641669,-500.0,0.00017973,2]
[401449449,1768230641679,-501.2767774,0.00017973,2]
[401449450,1768230641689,-500.0,0.00017973,2]
[401449451,1768230641698,-500.0,0.00017973,2]
[401449452,1768230641708,-500.0,0.00017973,2]
[401449453,1768230641717,-500.0,0.00017973,2]
[401449454,1768230641726,-500.0,0.00017973,2]
[401449455,1768230641736,-500.0,0.00017973,2]
[401449456,1768230641746,-610.36957715,0.00017973,2]
[401449457,1768230641756,-500.0,0.00017973,2]
[401449458,1768230641766,-500.0,0.00017973,2]
[401449459,1768230641776,-642.03010417,0.00017973,2]
[401449460,1768230641786,-500.0,0.00017973,2]
[401449461,1768230641796,-500.0,0.00017973,2]
[401449462,1768230641805,-500.0,0.00017973,2]
[401449463,1768230641815,-500.0,0.00017973,2]
[401449464,1768230641824,-571.47009533,0.00017973,2]
[401449465,1768230641833,-500.0,0.00017973,2]
[401449466,1768230641843,-500.0,0.00017973,2]
[401449467,1768230641853,-500.0,0.00017973,2]
[401449468,1768230641863,-500.0,0.00017973,2]
[401449469,1768230641872,-500.0,0.00017973,2]
[401449470,1768230641882,-500.0,0.00017973,2]
[401449471,1768230641891,-500.0,0.00017973,2]
[401449472,1768230641901,-500.0,0.00017973,2]
[401449473,1768230641910,-500.0,0.00017973,2]
[401449474,1768230641920,-500.0,0.00017973,2]
[401449475,1768230641929,-500.0,0.00017973,2]
[401449476,1768230641938,-500.0,0.00017973,2]
[401449477,1768230641948,-500.0,0.00017973,2]
[401449478,1768230641958,-500.0,0.00017973,2]
[401449479,1768230641967,-500.0,0.00017973,2]
[401449480,1768230641977,-500.0,0.00017973,2]
[401449481,1768230641987,-500.0,0.00017973,2]
[401449482,1768230641997,-150.0,0.00017973,2]
[401449483,1768230642007,-150.0,0.00017973,2]
[401449484,1768230642016,-152.92662848,0.00017982,2]
[401449485,1768230642025,-500.0,0.00017982,2]
[401449486,1768230642036,-841.28772637,0.0001799,2]
[401449487,1768230642045,-841.28772637,0.0001799,2]
[401449488,1768230642055,-500.0,0.00017994,2]
[401449489,1768230642064,-500.0,0.00017994,2]
[401449490,1768230642074,-463.0,0.00017994,2]
[401449491,1768230642084,-500.0,0.00017997,2]
[401449492,1768230642093,-150.0,0.00017997,2]
[401449493,1768230642103,-391.667066,0.00017997,2]
[401449494,1768230642113,-500.0,0.00017998,2]
[401449495,1768230642123,-163976.8218256,0.00017998,2]
[401449496,1768230642133,-500.0,0.00017998,2]
[401449497,1768230642142,-1000.0,0.00017999,2]
[401449498,1768230642151,-3593.7231618,0.00017999,2]
[401449499,1768230642161,-232352.2449024,0.00017999,2]
[401449500,1768230642171,-4653.61087226,0.00017999,2]
[401449501,1768230642798,-1443.45977058,0.00017999,2]
[401449509,1768230643581,-2811.66687308,0.00017856,2]
[401449510,1768230643591,-1017.20048357,0.00017999,2]
[401449511,1768230643603,-4755.72673679,0.00017999,2]
[401449512,1768230643612,-300.0,0.00017999,2]
[401449513,1768230643622,-300.0,0.00017999,2]
[401449514,1768230643631,-322.78140025,0.00017999,2]
[401449515,1768230643695,-177.21859975,0.00017999,2]
[401449516,1768230643707,-500.0,0.00017999,2]
[401449517,1768230643717,-500.0,0.00017999,2]
[401449518,1768230643727,-198.38010425,0.00017999,2]
[401449519,1768230643738,-301.61989575,0.00017999,2]
[401449520,1768230643747,-677.99669903,0.00017999,2]
[401449521,1768230643757,-500.0,0.00017999,2]
[401449522,1768230643766,-500.0,0.00017999,2]
[401449523,1768230643776,-500.0,0.00017999,2]
[401449524,1768230643785,-500.0,0.00017999,2]
[401449525,1768230643795,-500.0,0.00017999,2]
[401449526,1768230643805,-500.0,0.00017999,2]
[401449527,1768230643814,-500.0,0.00017999,2]
[401449528,1768230643824,-500.0,0.00017999,2]
[401449529,1768230643833,-500.0,0.00017999,2]
[401449530,1768230643843,-500.0,0.00017999,2]
[401449531,1768230643852,-229.7950838,0.00017999,2]
[401449532,1768230643862,-666.0,0.00017999,2]
[401449533,1768230643871,-300.0,0.00017999,2]
[401449534,1768230643881,-500.0,0.00017999,2]
[401449535,1768230643891,-500.0,0.00017999,2]
[401449536,1768230643901,-500.0,0.00017999,2]
[401449537,1768230643910,-500.0,0.00017999,2]
[401449538,1768230643919,-500.0,0.00017999,2]
[401449539,1768230643928,-500.0,0.00017999,2]
[401449540,1768230643938,-500.0,0.00017999,2]
[401449541,1768230643947,-500.0,0.00017999,2]
[401449542,1768230643957,-500.0,0.00017999,2]
[401449543,1768230643966,-590.29731043,0.00017999,2]
[401449544,1768230643976,-300.0,0.00017999,2]
[401449545,1768230643986,-666.0,0.00017999,2]
[401449546,1768230643996,-300.0,0.00017999,2]
[401449547,1768230644005,-233.7382134,0.00018,2]
[401449548,1768230644015,-179.26297629,0.00018,2]
[401449549,1768230644024,-239.06226366,0.00018,2]
[401449550,1768230644033,-152.37123583,0.00018,2]
[401449551,1768230644042,-17642.89987481,0.00018,2]
[401449552,1768230644054,-644.20590704,0.00018,2]
[401449553,1768230644134,-943.49055009,0.00018,2]
[401449554,1768230644145,-3981.30851948,0.00018,2]
[401449555,1768230644157,-1890.52566694,0.00018,2]
[401449560,1768230645225,-20700.0,0.00018,2]
[401449561,1768230645294,-13187.2889936,0.00018,2]
[401449564,1768230646354,-2811.66687308,0.00017878,2]
[401449565,1768230646364,-55530.98828912,0.00018,2]
[401449566,1768230646374,-371212.34967932,0.00018,2]
[401449567,1768230646385,-12824.51798303,0.00018,2]
[401449568,1768230646397,-1276.87461959,0.00018,2]
[401449585,1768231014164,150.0,0.00016794,120]
[401449586,1768231265830,169.65,0.00013285,2]
[401449587,1768231524640,1026.99761776,0.000108,2]
[401449588,1768231559251,6364.99633936,8e-05,2]
[401449589,1768231605121,150.64484772,0.00011776,2]
[401449592,1768231704592,2732.94045199,0.0001,2]
[401449606,1768231831427,-247.0,0.00014999,2]
[401449608,1768231831437,-1200.0,0.00014999,2]
[401449609,1768231831447,-195.0,0.00015,2]
[401449610,1768231831460,-1000.0,0.00015,2]
[401449611,1768231831469,-4793.08101529,0.00015,2]
[401449612,1768231831479,-4868.59724668,0.00015,2]
[401449613,1768231831489,-274.0,0.00015,2]
[401449614,1768231831499,-195.0,0.0001525,2]
[401449615,1768231831508,-250.0,0.0001525,2]
[401449616,1768231831518,-163.2149018,0.00015499,2]
[401449617,1768231831528,-500.0,0.00015499,2]
[401449618,1768231831538,-500.0,0.00015499,2]
[401449619,1768231831548,-500.0,0.00015499,2]
[401449620,1768231831557,-500.0,0.00015499,2]
[401449621,1768231831567,-546.47367679,0.00015499,2]
[401449622,1768231831576,-500.0,0.00015499,2]
[401449623,1768231831586,-1000.0,0.000155,2]
[401449624,1768231831596,-1000.0,0.00016,2]
[401449625,1768231831605,-151.0,0.00016073,2]
[401449626,1768231831615,-151.0,0.00016073,2]
[401449627,1768231831627,-150.0,0.000162,2]
[401449628,1768231831637,-150.0,0.000162,2]
[401449629,1768231831647,-150.0,0.000162,2]
[401449630,1768231831656,-150.0,0.000162,2]
[401449631,1768231831666,-150.0,0.000162,2]
[401449632,1768231831676,-150.0,0.000162,2]
[401449633,1768231831686,-150.0,0.000162,2]
[401449634,1768231831695,-150.0,0.000162,2]
[401449635,1768231831709,-150.0,0.000162,2]
[401449636,1768231831719,-3611.38315943,0.000162,5]
[401449637,1768231831731,-299.06715887,0.000162,5]
[401449638,1768231831742,-1089.55229761,0.000162,5]
[401449639,1768231831752,-1852.42,0.00016365,2]
[401449640,1768231831762,-163.45,0.00016368,2]
[401449641,1768231831771,-195.0,0.00016499,2]
[401449642,1768231831780,-212.80296601,0.00016499,2]
[401449643,1768231831796,-1467.19703399,0.00016499,2]
[401449644,1768231831808,-250.0,0.000165,2]
[401449645,1768231831817,-250.0,0.000165,2]
[401449646,1768231831827,-150.0,0.0001656,2]
[401449647,1768231831837,-873.35374381,0.00016565,2]
[401449648,1768231831848,-311.30625619,0.00016565,2]
[401449649,1768231831857,-150.0,0.0001665,2]
[401449651,1768231831867,-999.0,0.00016669,3]
[401449653,1768231831877,-153.61,0.00016675,2]
[401449655,1768231831887,-999.99,0.00016675,2]
[401449657,1768231831896,-6813.59374381,0.00016675,2]
[401449659,1768231831911,-423.75827828,0.00016675,2]
[401449662,1768231831923,-1826.92164788,0.00016675,2]
[401449664,1768231831934,-935.71633003,0.00016675,2]
[401449666,1768231831944,-347.94,0.00016675,2]
[401449668,1768231831953,-150.99,0.00016675,2]
[401449670,1768231831963,-150.0,0.00016794,2]
[401449672,1768231831973,-150.0,0.000168,2]
[401449674,1768231831982,-150.0,0.0001692,2]
[401449676,1768231831991,-250.0,0.00017,2]
[401449677,1768231832000,-151.0,0.00017026,2]
[401449678,1768231832010,-768.94022145,0.00017036,2]
[401449679,1768231832022,-287.06431718,0.00017036,2]
[401449680,1768231832033,-529.27062922,0.00017036,2]
[401449681,1768231832045,-254.72572641,0.00017036,2]
[401449682,1768231832057,-1399.99910574,0.00017036,2]
[401449683,1768231832067,-500.0,0.00017073,2]
[401449684,1768231832076,-503.67715138,0.00017073,2]
[401449685,1768231832086,-380.13928914,0.00017085,2]
[401449686,1768231832098,-959.16071086,0.00017085,2]
[401449687,1768231832108,-150.0,0.000171,2]
[401449688,1768231832118,-150.0,0.000171,2]
[401449689,1768231832128,-1000.0,0.00017214,2]
[401449690,1768231832138,-812.0,0.00017262,2]
[401449691,1768231832149,-500.0,0.00017277,2]
[401449692,1768231832159,-533.88981491,0.00017277,2]
[401449693,1768231832168,-497.13904531,0.00017277,2]
[401449694,1768231832180,-2.86095469,0.00017277,2]
[401449695,1768231832190,-500.0,0.00017277,2]
[401449696,1768231832199,-0.34949073,0.00017277,2]
[401449697,1768231832214,-499.65050927,0.00017277,2]
[401449698,1768231832223,-0.34949073,0.00017277,2]
[401449699,1768231832235,-499.65050927,0.00017277,2]
[401449700,1768231832245,-335.33906187,0.00017277,2]
[401449701,1768231832283,-164.66093813,0.00017277,2]
[401449702,1768231832293,-457.89578873,0.00017277,2]
[401449705,1768231837570,-42.10421127,0.00017277,2]
[401449706,1768231837586,-500.0,0.00017277,2]
[401449707,1768231837595,-130.54657522,0.0001728,2]
[401449708,1768231837608,-19.45342478,0.0001728,2]
[401449709,1768231837618,-234.72701328,0.00017288,2]
[401449710,1768231837738,-2426.23798672,0.00017288,2]
[401449711,1768231837748,-1000.0,0.00017288,2]
[401449712,1768231837758,-150.0,0.000174,2]
[401449713,1768231837768,-2000.0,0.000175,2]
[401449714,1768231837777,-812.0,0.00017502,2]
[401449715,1768231837787,-500.0,0.00017503,2]
[401449716,1768231837797,-438.0,0.00017503,2]
[401449717,1768231837806,-150.0,0.00017503,2]
[401449718,1768231837816,-150.0,0.00017503,2]
[401449719,1768231837825,-151.53770348,0.00017503,2]
[401449720,1768231837835,-150.0,0.00017503,2]
[401449721,1768231837845,-150.0,0.00017503,2]
[401449722,1768231837854,-150.0,0.00017503,2]
[401449723,1768231837864,-500.0,0.00017503,2]
[401449724,1768231837874,-150.0,0.00017503,2]
[401449725,1768231837885,-158.95584316,0.00017515,2]
[401449726,1768231837895,-812.0,0.00017538,2]
[401449727,1768231837905,-150.0,0.0001755,2]
[401449728,1768231837914,-500.0,0.00017558,2]
[401449729,1768231837924,-438.0,0.00017558,2]
[401449759,1768231838380,-150.0,0.00017558,2]
[401449762,1768231838416,-150.0,0.00017558,2]
[401449765,1768231838427,-150.0,0.00017558,2]
[401449767,1768231838437,-150.0,0.00017558,2]
[401449768,1768231838447,-150.0,0.00017558,2]
[401449770,1768231838457,-500.0,0.00017558,2]
[401449772,1768231838471,-266.59937829,0.00017558,2]
[401449774,1768231838481,-812.0,0.00017559,2]
[401449777,1768231838491,-2201.52823258,0.00017579,2]
[401449779,1768231838501,-1000.0,0.000176,2]
[401449781,1768231838511,-812.0,0.00017607,2]
[401449782,1768231838521,-500.0,0.00017613,2]
[401449785,1768231838531,-438.0,0.00017613,2]
[401449786,1768231838541,-200.0,0.00017613,2]
[401449788,1768231838551,-193.65137457,0.00017613,2]
[401449790,1768231838561,-150.0,0.00017613,2]
[401449792,1768231838571,-150.0,0.00017613,2]
[401449794,1768231838581,-150.0,0.00017613,2]
[401449796,1768231838590,-646.08693291,0.00017613,2]
[401449798,1768231838599,-1000.0,0.00017621,2]
[401449800,1768231838609,-2018.0,0.0001763,2]
[401449803,1768231838623,-5057.78371849,0.00017639,2]
[401449805,1768231838638,-8227.53550129,0.00017639,2]
[401449807,1768231838648,-11619.73567472,0.00017639,2]
[401449809,1768231838657,-15035.6844,0.00017639,2]
[401449811,1768231838667,-150.0,0.0001764,2]
[401449813,1768231838677,-902.21466556,0.0001764,2]
[401449814,1768231838686,-171.59144356,0.00017666,2]
[401449816,1768231838696,-500.0,0.00017666,2]
[401449819,1768231838707,-172.84268481,0.00017666,2]
[401449820,1768231838719,-500.0,0.00017667,2]
[401449822,1768231838729,-438.0,0.00017667,2]
[401449824,1768231838738,-150.0,0.00017667,2]
[401449826,1768231838748,-150.0,0.00017667,2]
[401449828,1768231838757,-150.0,0.00017667,2]
[401449830,1768231838766,-812.0,0.00017688,2]
[401449832,1768231838776,-528.07895713,0.000177,2]
[401449835,1768231838786,-1234.19316022,0.000177,2]
[401449837,1768231838796,-202.02373581,0.000177,2]
[401449839,1768231838805,-343.0,0.00017704,2]
[401449841,1768231838815,-153.61,0.00017717,2]
[401449843,1768231838828,-500.0,0.00017722,2]
[401449845,1768231838838,-438.0,0.00017722,2]
[401449847,1768231838847,-150.0,0.00017722,2]
[401449849,1768231838856,-150.0,0.00017722,2]
[401449851,1768231838866,-232.01326872,0.00017722,2]
[401449853,1768231838876,-528.07895705,0.00017722,2]
[401449855,1768231838885,-1234.19316016,0.00017722,2]
[401449857,1768231838894,-528.07895705,0.00017744,2]
[401449859,1768231838904,-1234.19316016,0.00017744,2]
[401449861,1768231838914,-528.07895705,0.00017767,2]
[401449863,1768231838923,-1234.19316016,0.00017767,2]
[401449865,1768231838933,-500.0,0.00017777,2]
[401449867,1768231838941,-438.0,0.00017777,2]
[401449869,1768231838950,-150.0,0.00017777,2]
[401449871,1768231838963,-250.0,0.00017777,2]
[401449873,1768231838972,-528.07895705,0.00017789,2]
[401449875,1768231838982,-1234.19316016,0.00017789,2]
[401449877,1768231838993,-376.000383,0.00017797,2]
[401449879,1768231839004,-376.000383,0.00017797,2]
[401449881,1768231839018,-500.0,0.00017799,2]
[401449883,1768231839030,-500.0,0.00017799,2]
[401449885,1768231839043,-500.0,0.00017799,2]
[401449888,1768231839055,-500.0,0.00017799,2]
[401449890,1768231839065,-150.0,0.000178,2]
[401449891,1768231839075,-482501.98252904,0.000178,2]
[401449894,1768231839091,-358.33485164,0.000178,2]
[401449896,1768231839103,-411.62941414,0.000178,2]
[401449952,1768231839620,-603.9459179,0.000178,2]
[401450044,1768231840480,-151.0,0.00016475,2]
[401450046,1768231840490,-1666.68,0.000178,2]
[401450110,1768231843723,-151.0,0.00016475,2]
[401450111,1768231843733,-411.21061276,0.000178,2]
[401450112,1768231844829,-7687.363211,0.000178,2]
[401450113,1768231844851,-300.790192,0.000178,2]
[401450114,1768231845486,-165.67263748,0.000177,2]
[401450115,1768231845497,-893.27027594,0.000178,2]
[401450116,1768231845664,-2223.2049313,0.000178,2]
[401450117,1768231845769,-360.51655806,0.000178,2]
[401450118,1768231845780,-13678.17217946,0.000178,2]
[401450121,1768232428802,166.68,0.00015226,30]
[401450122,1768232429341,166.68,0.00015378,30]
[401450134,1768232582380,-168.37129317,0.00012,2]
[401450135,1768232585596,-293.03618238,0.00012,2]
[401450136,1768232590310,-173.41473106,0.00012,2]
[401450138,1768232593011,-278.10463043,0.00012,2]
[401450207,1768232956581,30000.0,0.00027397,120]
[401450212,1768233018506,-88.7876383,0.00012,2]
[401450213,1768233018533,-136.48851393,0.00012,2]
[401450220,1768233031679,-111.51148607,0.00012,2]
[401450221,1768233031688,-250.0,0.000123,2]
[401450222,1768233031698,-300.0,0.000126,2]
[401450223,1768233031708,-101.28843696,0.00012997,2]
[401450224,1768233031748,-222.80547287,0.00012997,2]
[401450225,1768233031758,-211.54913959,0.000131,2]
[401450227,1768233031767,-300.0,0.000132,2]
[401450228,1768233031777,-300.0,0.000132,2]
[401450230,1768233031787,-250.0,0.000132,2]
[401450231,1768233031797,-300.0,0.00013345,2]
[401450232,1768233031807,-228.34259653,0.00013345,2]
[401450233,1768233031819,-71.65740347,0.00013345,2]